bitfinex/quotes_ETHUSD_20250720
["timestamp","ask_amount","ask_price","bid_price","bid_amount"]
[1753054331224,9.25546257,3743.7,3743.6,0.001]
[1753054331548,6.03430837,3743.7,3743.6,0.001]
[1753054331720,0.6661,3743.7,3743.6,0.001]
[1753054331926,0.4314,3744.4,3743.6,0.001]
[1753054332166,0.1328,3743.8,3743.6,0.001]
[1753054332480,4.143,3743.7,3743.6,0.001]
[1753054332754,7.6997854,3743.7,3743.6,0.001]
[1753054332956,5.66808,3743.7,3743.6,0.001]
[1753054333636,8.3392342,3743.7,3743.6,0.001]
[1753054333842,12.98463688,3743.7,3743.6,0.001]
[1753054335543,15.98463688,3743.7,3743.6,0.001]
[1753054337075,3.22122555,3743.6,3743.5,0.001]
[1753054337365,5.39315074,3743.6,3743.5,0.001]
[1753054337725,9.84527399,3743.6,3743.5,0.001]
[1753054337930,8.7975,3743.6,3743.5,0.001]
[1753054338130,4.8181,3743.6,3743.5,0.001]
[1753054338580,0.6661,3744.0,3743.5,0.001]
[1753054338727,0.1328,3743.6,3743.5,0.001]
[1753054338930,4.2848,3743.6,3743.5,0.001]
[1753054339471,0.1328,3743.6,3743.5,0.001]
[1753054339646,4.2838,3743.6,3743.5,0.001]
[1753054341473,0.1328,3743.6,3743.5,0.001]
[1753054341689,2.39597852,3748.2,3743.5,0.001]
[1753054341690,4.09540268,3745.5,3743.6,0.7914]
[1753054341877,0.1328,3744.5,3744.3,0.7914]
[1753054342051,0.1328,3744.8,3744.4,0.445]
[1753054342246,3.10111309,3745.8,3744.4,0.445]
[1753054342247,0.4314,3745.8,3744.5,0.02670583]
[1753054342448,0.1328,3745.5,3745.1,0.7799]
[1753054342651,0.0266512,3745.4,3745.1,0.7799]
[1753054342838,0.0266512,3745.4,3744.8,3.24815797]
[1753054343286,0.1328,3745.5,3744.8,3.24816653]
[1753054343488,0.1328,3745.5,3744.9,0.84780665]
[1753054343693,0.1328,3745.5,3744.8,0.02670369]
[1753054343694,0.1328,3745.5,3745.3,2.67000611]
[1753054343910,0.1328,3745.5,3745.0,0.5778]
[1753054344111,0.1328,3745.5,3745.1,2.67015057]
[1753054344287,0.1328,3745.5,3745.0,3.24801033]
[1753054344456,0.1328,3745.5,3745.1,0.445]
[1753054345258,0.1328,3745.5,3745.2,0.445]
[1753054346061,0.1328,3745.5,3745.0,2.80302386]
[1753054346062,0.1328,3745.5,3745.0,0.1328]
[1753054346256,0.1328,3745.5,3745.3,0.445]
[1753054346579,0.1328,3745.5,3745.0,0.1328]
[1753054346782,4.146,3745.8,3745.4,3.11494179]
[1753054346958,4.146,3745.8,3745.5,1.2705]
[1753054347152,4.146,3745.8,3745.6,0.445]
[1753054348694,4.146,3745.8,3745.5,3.49535755]
[1753054348896,0.1528,3745.9,3745.7,0.4564]
[1753054349103,0.02,3745.9,3745.8,2.66965668]
[1753054349259,0.02,3745.9,3745.8,3.25885668]
[1753054350399,0.02,3745.9,3745.8,0.5892]
[1753054350618,0.02,3745.9,3745.8,0.1328]
[1753054350772,4.8291,3745.9,3745.1,0.7995]
[1753054350972,0.1328,3745.6,3745.0,0.1328]
[1753054351266,0.89245027,3745.8,3744.5,0.7995]
[1753054351267,0.1328,3745.4,3744.8,2.67036957]
[1753054351471,0.1328,3745.4,3744.7,0.1328]
[1753054351472,0.1328,3745.4,3745.0,3.12657639]
[1753054351774,4.145,3745.7,3745.1,0.4564]
[1753054351976,4.2778,3745.7,3745.1,0.4564]
[1753054352384,4.2778,3745.7,3745.1,3.12654728]
[1753054352788,4.2778,3745.7,3745.1,0.4564]
[1753054353002,0.0266512,3745.6,3745.1,0.4564]
[1753054353518,4.77419,3745.7,3745.1,0.4564]
[1753054353872,4.77419,3745.7,3745.0,0.1328]
[1753054354066,0.1328,3745.4,3744.8,0.1328]
[1753054354896,0.6661,3745.1,3744.2,0.4564]
[1753054355208,0.1328,3744.9,3744.3,0.1328]
[1753054355366,0.1328,3744.9,3744.4,2.67060412]
[1753054355764,0.1328,3744.9,3744.5,0.4564]
[1753054356084,0.1328,3745.2,3744.9,2.67029775]
[1753054356294,0.1328,3745.2,3744.5,0.02670583]
[1753054356295,2.8027194,3745.5,3744.8,0.1328]
[1753054356484,0.1328,3745.3,3744.8,0.1328]
[1753054356679,0.0266512,3745.2,3744.8,0.1328]
[1753054357085,0.0266512,3745.2,3744.5,1.3622]
[1753054357296,2.69678083,3745.2,3744.2,0.773]
[1753054357479,0.1328,3744.9,3744.3,2.67071965]
[1753054357679,0.1328,3744.9,3744.3,3.0]
[1753054359015,0.1328,3744.9,3744.2,0.9058]
[1753054359234,0.1328,3744.9,3744.3,3.4564]
[1753054359520,0.1328,3744.9,3744.3,0.4564]
[1753054360403,0.0266512,3744.8,3743.8,0.755]
[1753054360589,0.1328,3744.4,3743.8,0.8878]
[1753054361576,2.67096277,3744.0,3743.5,0.001]
[1753054361777,0.1328,3743.7,3743.5,0.001]
[1753054361982,0.0266512,3743.6,3743.5,0.001]
[1753054362178,1.1607512,3743.6,3743.5,0.001]
[1753054363127,3.80532555,3743.6,3743.5,0.001]
[1753054363431,3.83197675,3743.6,3743.5,0.001]
[1753054363722,4.59590239,3743.6,3743.5,0.001]
[1753054363923,1.45667684,3743.6,3743.5,0.001]
[1753054364098,0.1328,3743.7,3743.5,0.001]
[1753054364302,4.143,3743.6,3743.5,0.001]
[1753054364830,7.28222555,3743.6,3743.5,0.001]
[1753054367709,11.49832555,3743.6,3743.5,0.001]
[1753054367910,3.22143963,3743.3,3743.1,0.02]
[1753054368100,8.12244854,3743.3,3743.1,0.02]
[1753054368300,8.56379734,3743.3,3743.1,0.02]
[1753054368497,12.70679734,3743.3,3743.1,0.02]
[1753054371434,3.887611,3743.2,3743.1,1e-08]
[1753054371608,10.43322781,3742.9,3742.8,0.001]
[1753054371815,14.84132409,3742.9,3742.8,0.001]
[1753054372015,15.30932409,3742.9,3742.8,0.001]
[1753054373397,11.16832409,3742.9,3742.8,0.001]
[1753054373709,15.85832409,3742.9,3742.8,0.001]
[1753054374240,15.39032409,3742.9,3742.8,0.001]
[1753054374627,4.139,3742.9,3742.8,0.001]
[1753054374937,4.2718,3742.9,3742.8,0.4574]
[1753054375099,4.2718,3742.9,3742.8,0.001]
[1753054375517,0.1328,3742.9,3742.8,0.001]
[1753054375724,4.2728,3742.9,3742.8,0.001]
[1753054376543,4.2728,3742.9,3742.8,0.4574]
[1753054377458,0.1328,3742.9,3742.8,0.4574]
[1753054377605,4.2718,3742.9,3742.8,0.001]
[1753054378454,7.83145633,3742.9,3742.8,0.001]
[1753054378601,7.80480513,3742.9,3742.8,0.001]
[1753054379006,5.13308,3742.9,3742.8,0.001]
[1753054379290,5.1597312,3742.9,3742.8,0.001]
[1753054379460,4.7256312,3742.9,3742.8,0.001]
[1753054379752,4.69898,3742.9,3742.8,0.001]
[1753054379959,0.55,3742.8,3742.1,0.021]
[1753054380125,8.16615695,3742.3,3742.1,0.021]
[1753054380467,12.30215695,3742.3,3742.1,0.021]
[1753054380604,13.51825695,3742.3,3742.1,0.021]
[1753054380807,2.6722963,3742.1,3741.3,0.001]
[1753054381017,11.28020347,3742.3,3741.3,0.001]
[1753054381018,0.1336,3741.4,3741.3,0.001]
[1753054381220,6.94439627,3741.4,3741.3,0.001]
[1753054381419,4.2716,3741.4,3741.3,0.001]
[1753054381824,6.94439627,3741.4,3741.3,0.001]
[1753054382151,4.2716,3741.4,3741.3,0.001]
[1753054382346,8.01922146,3741.4,3741.3,0.001]
[1753054382560,5.75387399,3741.4,3741.3,0.001]
[1753054382734,8.45332146,3741.4,3741.3,0.001]
[1753054383069,8.42667026,3741.4,3741.3,0.001]
[1753054383812,5.75387399,3741.4,3741.3,0.001]
[1753054384047,0.1336,3741.4,3741.3,0.7824]
[1753054384210,4.136,3741.5,3741.3,1.231]
[1753054384409,4.136,3741.5,3741.3,0.7824]
[1753054384649,0.1336,3741.6,3741.5,2.67272484]
[1753054384850,7.0741,3742.6,3741.5,0.4486]
[1753054385050,0.1336,3742.5,3741.6,0.81342653]
[1753054385364,0.6661,3743.0,3741.7,0.4486]
[1753054385365,4.1646512,3742.4,3741.7,0.4486]
[1753054385570,4.2716,3742.3,3741.7,0.4486]
[1753054385867,4.139,3742.4,3742.2,2.67222489]
[1753054386064,0.1328,3742.7,3742.4,2.67208208]
[1753054386065,4.139,3742.5,3742.4,2.67208208]
[1753054386212,4.139,3742.5,3742.4,0.816]
[1753054386410,4.139,3742.5,3742.4,1.2646]
[1753054387125,0.6661,3743.4,3742.4,1.2646]
[1753054387349,0.1328,3743.0,3742.7,2.67180796]
[1753054387750,0.1328,3743.0,3742.8,0.4486]
[1753054388575,0.1328,3743.0,3742.9,0.4486]
[1753054389644,4.2708,3743.0,3742.9,0.4486]
[1753054390472,4.2688,3743.0,3742.9,0.4486]
[1753054390943,4.2688,3743.0,3742.4,0.9496]
[1753054391539,4.2688,3743.0,3742.5,2.67195592]
[1753054392065,6.409,3743.7,3742.6,0.4486]
[1753054392234,6.409,3743.7,3742.8,0.1328]
[1753054392235,0.1328,3743.4,3742.8,0.1328]
[1753054392438,0.1328,3743.4,3743.0,0.7901]
[1753054392638,0.1328,3743.4,3743.1,0.4486]
[1753054393274,0.1328,3743.4,3743.2,0.4486]
[1753054393460,0.1328,3743.7,3743.2,3.51113435]
[1753054393778,0.1328,3743.7,3743.3,0.4486]
[1753054393779,4.2678,3743.7,3743.3,0.4486]
[1753054393937,4.2678,3743.7,3743.4,0.4486]
[1753054394544,4.2678,3743.7,3743.3,2.67140778]
[1753054394763,4.2678,3743.7,3743.4,3.11996421]
[1753054394970,4.2678,3743.7,3743.4,2.67136421]
[1753054395173,4.2678,3743.7,3743.5,0.4486]
[1753054395577,0.1328,3743.7,3743.6,0.4486]
[1753054395879,4.135,3743.8,3743.6,3.11982555]
[1753054396065,4.135,3743.8,3743.7,0.4486]
[1753054396267,0.02,3743.9,3743.7,0.4486]
[1753054396452,0.02,3743.9,3743.8,3.49128285]
[1753054396651,0.02,3743.9,3743.8,1.4016]
[1753054397456,0.02,3743.9,3743.8,4.07268285]
[1753054397887,0.02,3743.9,3743.8,1.4016]
[1753054398182,0.02,3743.9,3743.8,4.07268285]
[1753054398879,0.02,3743.9,3743.8,1.4016]
[1753054399046,0.02,3743.9,3743.8,4.07268285]
[1753054399247,0.02,3743.9,3743.8,4.74717357]
[1753054400490,0.02,3743.9,3743.8,4.07268285]
[1753054402583,0.02,3743.9,3743.8,1.4016]
[1753054403089,0.02,3743.9,3743.8,4.07268285]
[1753054404052,0.02,3743.9,3743.8,4.09939367]
[1753054404469,0.02,3743.9,3743.8,1.4016]
[1753054404668,0.02,3743.9,3743.8,0.953]
[1753054404871,0.02,3743.9,3743.5,0.001]
[1753054405071,0.26910016,3743.8,3743.5,0.001]
[1753054405258,3.33732555,3743.6,3743.5,0.001]
[1753054405662,3.77142555,3743.6,3743.5,0.001]
[1753054406390,7.90442555,3743.6,3743.5,0.001]
[1753054406595,6.80422555,3743.6,3743.5,0.001]
[1753054406757,7.78067225,3743.6,3743.5,0.001]
[1753054406962,8.21477225,3743.6,3743.5,0.001]
[1753054411611,0.6861,3743.9,3743.5,0.001]
[1753054411807,4.129,3743.6,3743.5,0.4449]
[1753054412175,6.80022555,3743.6,3743.5,0.001]
[1753054412380,8.61813631,3743.6,3743.5,0.001]
[1753054413806,4.48913631,3743.6,3743.5,0.001]
[1753054414014,8.62113631,3743.6,3743.5,0.001]
[1753054415312,12.17113631,3743.6,3743.5,0.001]
[1753054416311,12.17113631,3743.6,3742.0,0.001]
[1753054416312,2.6722963,3742.1,3742.0,0.001]
[1753054416498,6.9358963,3742.1,3742.0,0.001]
[1753054417913,7.4056963,3742.1,3742.0,0.001]
[1753054418412,8.6217963,3742.1,3742.0,0.001]
[1753054420420,8.6227963,3742.1,3742.0,0.001]
[1753054420717,9.30480706,3742.1,3742.0,0.001]
[1753054421419,9.17120706,3742.1,3742.0,0.001]
[1753054421935,12.17120706,3742.1,3742.0,0.001]
[1753054422102,3.33889627,3741.4,3741.2,0.001]
[1753054422420,8.09570807,3741.4,3741.2,0.001]
[1753054422578,8.06905687,3741.4,3741.2,0.001]
[1753054422780,8.53885687,3741.4,3741.2,0.001]
[1753054424322,4.13,3741.4,3741.3,0.4449]
[1753054424488,3.1419615,3742.3,3741.3,0.4449]
[1753054424489,2.67230945,3742.1,3741.3,0.4449]
[1753054424682,6.82905422,3742.0,3741.3,0.001]
[1753054424882,7.27220302,3742.0,3741.3,0.001]
[1753054425081,2.67279627,3741.4,3741.3,0.001]
[1753054425282,6.80379627,3741.4,3741.3,0.001]
[1753054425483,8.48969627,3741.4,3741.3,0.001]
[1753054425738,4.131,3741.4,3741.3,0.001]
[1753054425941,9.80379627,3741.4,3741.3,0.001]
[1753054426242,10.07560296,3741.4,3741.3,0.001]
[1753054427340,4.13,3741.4,3741.3,0.001]
[1753054427512,6.80279627,3741.4,3741.3,0.001]
[1753054429023,11.48869627,3741.4,3741.3,0.001]
[1753054429222,16.98867809,3741.4,3741.3,0.001]
[1753054430216,3.22301061,3741.1,3740.7,0.001]
[1753054430548,8.83930679,3740.8,3740.7,0.001]
[1753054430735,12.97130679,3740.8,3740.7,0.001]
[1753054431058,4.132,3740.8,3740.7,0.4449]
[1753054431350,4.132,3740.8,3740.7,0.001]
[1753054431351,6.80522497,3740.8,3740.7,0.001]
[1753054431928,2.67312993,3741.0,3740.7,0.001]
[1753054432126,4.134,3740.9,3740.7,0.001]
[1753054432328,8.17300967,3741.1,3740.7,0.001]
[1753054432523,4.133,3741.0,3740.8,0.4439]
[1753054432756,4.134,3740.9,3740.7,0.001]
[1753054433047,4.134,3740.9,3740.7,0.4449]
[1753054433822,0.99004938,3740.8,3740.7,0.001]
[1753054434760,0.96339818,3740.8,3740.7,0.001]
[1753054434960,4.134,3740.9,3740.7,0.001]
[1753054435130,0.0266512,3740.8,3740.7,0.001]
[1753054435320,3.36597617,3740.8,3740.7,0.001]
[1753054435515,0.6927512,3740.8,3740.7,0.001]
[1753054435855,3.0,3741.0,3740.7,0.001]
[1753054436152,5.32491189,3740.9,3740.7,0.001]
[1753054436656,4.141,3740.8,3740.7,0.001]
[1753054437154,6.81422497,3740.8,3740.7,0.001]
[1753054437857,11.50202497,3740.8,3740.7,0.001]
[1753054438057,2.67365381,3740.2,3740.1,0.02]
[1753054438258,7.08801919,3740.2,3740.1,0.02]
[1753054439264,7.63801919,3740.2,3740.1,0.02]
[1753054439436,7.63801919,3740.2,3739.2,0.001]
[1753054439437,2.67429732,3739.3,3739.2,0.001]
[1753054439759,13.02003034,3739.3,3739.2,0.001]
[1753054439921,13.46507914,3739.3,3739.2,0.001]
[1753054440125,1.20798861,3739.3,3739.2,0.001]
[1753054440321,3.0,3740.2,3739.2,0.001]
[1753054440322,2.67381418,3740.0,3739.2,0.4545]
[1753054440524,3.55,3740.2,3739.2,0.4545]
[1753054440525,0.1336,3739.5,3739.2,0.4545]
[1753054440783,2.67429732,3739.3,3739.2,0.001]
[1753054440928,3.25094852,3739.3,3739.2,0.001]
[1753054441124,3.25094852,3739.3,3738.1,0.02]
[1753054441125,0.55,3739.1,3738.1,0.02]
[1753054441366,2.67508426,3738.2,3738.1,0.02]
[1753054441562,6.86273546,3738.2,3738.1,0.02]
[1753054441767,4.161,3738.2,3738.1,0.02]
[1753054441929,0.4717,3739.5,3738.1,0.02]
[1753054441930,0.6661,3739.5,3738.2,0.7704]
[1753054442126,0.1336,3738.8,3738.6,0.809]
[1753054442330,4.2966,3738.8,3738.6,0.809]
[1753054442530,4.2966,3738.8,3738.6,1.2625]
[1753054442768,2.67473242,3738.7,3738.1,0.02]
[1753054442978,4.1906512,3738.6,3738.1,0.02]
[1753054443283,0.1336,3738.3,3738.1,0.4735]
[1753054443492,4.1976512,3738.2,3738.1,0.02]
[1753054443633,4.171,3738.2,3738.1,0.02]
[1753054443969,4.87162119,3738.2,3738.1,0.02]
[1753054444510,4.171,3738.2,3738.1,0.02]
[1753054444672,0.1336,3738.3,3738.1,0.4735]
[1753054444859,0.1336,3738.3,3738.2,3.95768426]
[1753054445028,0.1336,3738.7,3738.2,1.2826]
[1753054445371,4.175,3738.7,3738.4,2.67492827]
[1753054445554,4.175,3738.7,3738.5,3.26192044]
[1753054445875,4.175,3738.7,3738.2,0.8291]
[1753054446171,0.1336,3738.5,3738.3,0.4535]
[1753054446369,4.175,3738.4,3738.2,0.8291]
[1753054446572,0.1336,3738.5,3738.2,0.8291]
[1753054446742,2.67340323,3740.6,3738.2,0.8291]
[1753054446743,8.4361,3739.9,3738.4,0.762]
[1753054446946,0.1336,3739.0,3738.5,3.1283566]
[1753054447144,4.3116,3739.0,3738.6,3.12827707]
[1753054447344,4.3116,3739.0,3738.7,0.4535]
[1753054447550,4.3116,3739.0,3738.4,1.28933144]
[1753054447551,4.3116,3739.0,3738.8,0.4535]
[1753054447771,0.1336,3739.0,3738.8,2.67462908]
[1753054447974,4.3116,3739.0,3738.4,0.8956]
[1753054448172,0.0266512,3738.9,3738.4,0.8956]
[1753054448379,5.52663302,3738.9,3738.1,0.02]
[1753054448551,0.1336,3738.5,3738.1,0.02]
[1753054448753,4.18,3738.4,3738.1,0.02]
[1753054449144,4.18,3738.4,3738.1,0.4735]
[1753054450079,0.1336,3738.3,3738.2,0.4535]
[1753054450644,0.1336,3738.3,3738.2,3.12858426]
[1753054450852,0.1336,3738.3,3738.2,0.4535]
[1753054451056,0.1336,3738.3,3738.2,3.12858426]
[1753054451399,0.1336,3739.0,3738.3,0.762]
[1753054451577,0.1336,3739.0,3738.4,0.4535]
[1753054451754,4.178,3739.1,3738.8,2.67463611]
[1753054451948,4.178,3739.1,3738.9,0.4535]
[1753054452153,4.178,3739.1,3738.3,0.762]
[1753054452154,0.0266512,3739.0,3738.3,0.762]
[1753054452387,0.1602512,3739.0,3738.4,0.1336]
[1753054452547,0.42046512,3739.0,3738.3,0.762]
[1753054452748,0.1336,3739.0,3738.4,0.1336]
[1753054452949,0.1602512,3739.0,3738.4,0.5871]
[1753054453154,0.0266512,3739.0,3738.3,0.762]
[1753054453393,0.1336,3738.7,3738.3,0.762]
[1753054453893,0.1336,3738.7,3738.4,0.4535]
[1753054454398,0.1336,3738.7,3738.5,0.4535]
[1753054454590,4.178,3738.9,3738.5,0.5871]
[1753054454886,4.178,3739.0,3738.6,0.4535]
[1753054455089,4.3116,3739.1,3738.7,0.4535]
[1753054455252,4.3116,3739.1,3738.8,3.12814556]
[1753054455454,4.3116,3739.1,3738.8,2.67464556]
[1753054455656,4.3116,3739.1,3738.9,0.4535]
[1753054456058,4.3116,3739.1,3738.8,2.67464556]
[1753054456352,4.3116,3739.1,3738.6,0.4535]
[1753054456753,4.3116,3739.1,3738.7,0.4535]
[1753054456970,4.3116,3739.1,3738.8,0.4535]
[1753054458960,0.1336,3739.1,3738.8,0.4535]
[1753054460102,0.002,3740.1,3739.0,0.8131]
[1753054460306,0.1336,3739.5,3739.1,3.12792388]
[1753054460594,0.1336,3740.0,3739.5,0.8131]
[1753054460791,0.0266512,3739.9,3739.2,0.4535]
[1753054460956,0.1336,3739.8,3739.2,0.4535]
[1753054461158,0.1336,3739.8,3739.2,3.12781973]
[1753054461360,0.1336,3739.8,3739.3,0.4535]
[1753054461559,0.1336,3739.8,3739.5,2.67414325]
[1753054461759,0.1336,3739.8,3739.6,0.4535]
[1753054461991,0.1336,3739.8,3739.7,0.4535]
[1753054462494,0.1336,3739.8,3739.3,3.12777178]
[1753054462693,0.1336,3739.8,3739.4,0.4535]
[1753054462895,0.1336,3739.8,3739.5,0.4535]
[1753054463706,0.1336,3739.8,3739.7,3.43871128]
[1753054464026,0.002,3740.1,3739.7,1.2182]
[1753054464193,0.002,3740.1,3739.8,0.4535]
[1753054464399,0.002,3740.1,3739.9,0.1336]
[1753054464618,0.002,3740.1,3739.9,0.5871]
[1753054464820,0.002,3740.1,3740.0,0.4535]
[1753054465521,0.002,3740.1,3739.9,0.1336]
[1753054465685,0.1356,3740.1,3739.4,0.5871]
[1753054465885,0.0266512,3740.0,3739.4,0.1336]
[1753054466087,0.1336,3739.4,3738.9,0.4535]
[1753054466401,0.1336,3739.4,3739.0,0.4535]
[1753054466832,0.1336,3739.4,3739.1,0.4535]
[1753054467319,0.1336,3739.4,3738.8,0.9025]
[1753054467320,0.1336,3739.4,3738.8,3.57714515]
[1753054467525,2.67577651,3740.1,3739.2,0.4535]
[1753054467684,0.1336,3739.7,3739.3,0.7689]
[1753054467880,4.18,3740.1,3739.4,0.4731]
[1753054468109,0.0266512,3740.0,3739.5,0.1336]
[1753054468307,0.0266512,3740.0,3738.1,0.021]
[1753054468308,2.67454812,3739.0,3738.6,0.7689]
[1753054468511,0.1336,3738.7,3738.1,0.9235]
[1753054469032,4.18,3739.5,3738.2,0.4731]
[1753054469249,0.1336,3739.0,3738.4,0.1336]
[1753054469532,0.1336,3739.0,3738.4,0.6067]
[1753054469953,6.85421742,3739.5,3738.6,2.67475941]
[1753054469954,4.18,3739.5,3738.6,2.67475941]
[1753054470250,0.1336,3739.4,3738.8,0.1336]
[1753054470418,0.1336,3739.4,3738.9,0.4731]
[1753054470745,0.1336,3739.4,3739.1,0.7689]
[1753054470931,0.002,3740.1,3739.3,2.67428025]
[1753054471130,0.1336,3740.0,3739.5,0.7689]
[1753054471335,0.1336,3740.0,3739.6,0.4731]
[1753054471727,0.4631512,3739.9,3739.1,0.7673]
[1753054472042,0.1336,3739.7,3739.1,0.7673]
[1753054472253,0.0266512,3739.6,3739.1,0.7673]
[1753054472650,0.0266512,3739.6,3739.1,1.2404]
[1753054473147,0.0266512,3739.6,3739.1,0.7673]
[1753054473351,0.1336,3739.7,3739.2,0.4731]
[1753054473553,0.1336,3739.7,3739.2,0.6105]
[1753054473738,0.1336,3739.7,3739.3,0.4731]
[1753054474112,0.1336,3739.7,3739.4,0.4731]
[1753054474862,0.1336,3739.7,3739.1,3.46846983]
[1753054475063,0.1336,3739.7,3739.5,0.4731]
[1753054475728,0.002,3740.1,3739.6,0.4731]
[1753054476141,0.002,3740.1,3739.7,0.4731]
[1753054476466,0.002,3740.1,3739.7,0.6067]
[1753054476642,0.002,3740.1,3739.8,0.4731]
[1753054477166,0.002,3740.1,3739.7,0.1336]
[1753054477371,0.002,3740.1,3739.4,4.178]
[1753054477571,0.1356,3740.1,3739.4,4.3116]
[1753054477752,0.1356,3740.1,3739.6,0.4731]
[1753054477956,0.1356,3740.1,3739.7,0.4731]
[1753054478156,0.1356,3740.1,3739.8,0.4731]
[1753054478373,0.1356,3740.1,3739.9,0.4731]
[1753054478374,0.002,3740.1,3739.9,0.4731]
[1753054478738,0.002,3740.1,3740.0,0.4731]
[1753054479978,0.002,3740.1,3739.8,0.1336]
[1753054480331,0.002,3740.1,3739.8,0.6067]
[1753054480734,0.002,3740.1,3739.8,0.1336]
[1753054482185,0.1356,3740.1,3739.4,0.6067]
[1753054482387,0.1356,3740.1,3739.5,2.67414991]
[1753054482603,0.1356,3740.1,3739.4,0.6067]
[1753054483172,0.0266512,3740.0,3739.4,0.6067]
[1753054483569,0.6661,3739.9,3738.9,1.2682]
[1753054483766,0.1336,3739.7,3739.1,0.1336]
[1753054483965,0.6661,3739.9,3738.9,0.001]
[1753054483966,0.1336,3739.5,3738.9,0.001]
[1753054484193,0.6661,3739.2,3738.9,0.001]
[1753054484399,0.49696115,3739.1,3738.9,0.001]
[1753054484893,0.47030995,3739.1,3738.9,0.001]
[1753054485199,2.7011631,3739.0,3738.9,0.001]
[1753054485792,2.6745119,3739.0,3738.9,0.001]
[1753054485999,0.47030995,3739.1,3738.9,0.001]
[1753054486157,0.1336,3739.1,3738.9,0.4741]
[1753054486359,0.1336,3739.3,3739.0,0.4731]
[1753054486695,4.18,3739.4,3739.1,3.8980044]
[1753054486901,4.18,3739.4,3739.2,0.4731]
[1753054487198,0.1336,3739.8,3739.2,0.4731]
[1753054487568,0.1336,3739.8,3739.3,2.67429248]
[1753054487764,0.1336,3739.8,3739.4,0.4731]
[1753054488383,0.1336,3739.8,3739.1,0.7505]
[1753054488568,2.67427892,3739.4,3738.9,0.001]
[1753054488790,0.56148737,3739.3,3738.9,0.001]
[1753054489375,0.53483617,3739.3,3738.9,0.001]
[1753054489582,4.177,3739.5,3739.0,0.4731]
[1753054489765,4.177,3739.5,3738.9,0.001]
[1753054489969,4.177,3739.5,3739.1,0.4731]
[1753054490564,5.95664738,3740.1,3739.2,3.14741644]
[1753054490565,0.94901904,3740.1,3739.2,3.14741644]
[1753054490768,0.94901904,3740.1,3739.2,0.4731]
[1753054491598,0.94901904,3740.1,3739.2,3.14744723]
[1753054492158,0.94901904,3740.1,3739.2,0.4731]
[1753054492397,0.54241822,3740.0,3739.2,0.4731]
[1753054493196,0.51576702,3740.0,3739.2,0.4731]
[1753054493356,0.0266512,3739.9,3739.2,0.4731]
[1753054493780,0.51576702,3740.0,3739.2,3.1474669]
[1753054493979,0.002,3740.1,3739.4,2.67419987]
[1753054494195,0.002,3740.1,3739.5,0.49984154]
[1753054494394,0.002,3740.1,3739.7,2.6739647]
[1753054494769,0.002,3740.1,3739.6,0.7937]
[1753054494770,0.002,3740.1,3739.8,2.67391612]
[1753054495096,0.002,3740.1,3739.8,0.4731]
[1753054495302,0.002,3740.1,3739.9,0.4731]
[1753054495997,2.67390832,3739.9,3739.0,1.2668]
[1753054496199,0.0266512,3739.8,3739.0,3.94125045]
[1753054496376,0.0266512,3739.9,3739.0,4.2668]
[1753054496574,0.0266512,3739.9,3739.0,3.7937]
[1753054496806,0.0266512,3739.9,3739.0,4.2668]
[1753054497106,0.002,3740.1,3739.1,0.4731]
[1753054497404,0.002,3740.1,3739.1,3.14748664]
[1753054497704,0.002,3740.1,3739.1,3.14752977]
[1753054497872,0.002,3740.1,3739.2,0.439]
[1753054498072,2.67380071,3740.0,3739.2,0.439]
[1753054498401,2.70057787,3739.9,3739.2,0.439]
[1753054498604,2.83417787,3739.9,3739.3,0.1336]
[1753054499307,0.6661,3739.8,3739.3,0.1336]
[1753054499508,2.67412642,3739.6,3738.9,0.001]
[1753054499724,2.6742797,3739.4,3738.9,0.1346]
[1753054499903,0.57751751,3739.3,3738.9,0.1346]
[1753054500220,0.6661,3739.2,3738.9,0.001]
[1753054500423,2.70114511,3739.1,3738.9,0.001]
[1753054500974,0.6661,3739.9,3739.0,1.2306]
[1753054501233,4.19,3740.1,3739.1,0.4657444]
[1753054501400,2.67385479,3740.0,3739.2,0.39329185]
[1753054501605,2.67385479,3740.0,3738.9,0.001]
[1753054501606,3.4721512,3740.0,3738.9,0.001]
[1753054501853,0.55,3739.8,3738.9,0.001]
[1753054502132,3.3406119,3739.0,3738.9,0.001]
[1753054502284,14.18509757,3739.0,3738.9,0.001]
[1753054502487,16.96449757,3739.0,3737.3,3.0]
[1753054502714,3.34118426,3738.2,3737.3,3.0]
[1753054502958,7.56183546,3738.2,3737.3,3.0]
[1753054503110,3.34125582,3738.1,3737.3,3.0]
[1753054503322,3.34125582,3738.1,3737.1,0.02]
[1753054503326,2.67580006,3737.2,3737.1,0.02]
[1753054503700,3.78740006,3737.2,3737.1,0.02]
[1753054503903,9.31403308,3737.2,3737.1,0.02]
[1753054504119,9.28738188,3737.2,3737.1,0.02]
[1753054504325,12.83738188,3737.2,3737.1,0.02]
[1753054504496,13.43888573,3737.2,3737.1,0.02]
[1753054505327,7.93890391,3737.2,3737.1,0.02]
[1753054505535,12.14790391,3737.2,3737.1,0.02]
[1753054505827,9.47210385,3737.2,3737.1,0.02]
[1753054506033,1.26760385,3737.2,3737.1,0.02]
[1753054506193,4.8741,3737.2,3737.1,0.02]
[1753054506802,0.6661,3737.2,3737.1,0.02]